fUST/lending_fUST_20250521
["ID","MTS","AMOUNT","RATE_DAILY","PERIOD"]
[361763086,1747768247297,-166.1,0.00016986,2]
[361763087,1747768247307,-151.0,0.00016986,2]
[361763088,1747768247316,-166.1,0.00016986,2]
[361763089,1747768247325,-430.0,0.00016986,2]
[361763090,1747768247335,-490.0,0.00016986,2]
[361763091,1747768247344,-151.0,0.00016986,2]
[361763092,1747768247353,-490.0,0.00016986,2]
[361763093,1747768247362,-151.0,0.00016986,2]
[361763094,1747768247372,-276.87,0.00016986,2]
[361763095,1747768247382,-232.22211638,0.00016986,2]
[361763096,1747768247391,-490.0,0.00016986,2]
[361763097,1747768247400,-430.0,0.00016986,2]
[361763098,1747768247410,-430.0,0.00016986,2]
[361763099,1747768247419,-301.68,0.00016986,2]
[361763100,1747768247428,-386.69407913,0.00016986,2]
[361763101,1747768247438,-490.0,0.00016986,2]
[361763102,1747768247447,-430.0,0.00016986,2]
[361763103,1747768247457,-347.49206568,0.00016986,2]
[361763104,1747768247466,-490.0,0.00016986,2]
[361763105,1747768247475,-490.0,0.00016986,2]
[361763106,1747768247485,-490.0,0.00016986,2]
[361763107,1747768247495,-490.0,0.00016986,2]
[361763108,1747768247504,-490.0,0.00016986,2]
[361763109,1747768247514,-490.0,0.00016986,2]
[361763110,1747768247523,-490.0,0.00016986,2]
[361763111,1747768247533,-727.0,0.00016986,2]
[361763112,1747768247543,-151.882523,0.00016986,2]
[361763113,1747768247553,-412.12261426,0.00016986,2]
[361763114,1747768247562,-490.0,0.00016986,2]
[361763115,1747768247571,-490.0,0.00016986,2]
[361763116,1747768247580,-449.84,0.00016986,2]
[361763117,1747768247589,-430.0,0.00016986,2]
[361763118,1747768247598,-151.0,0.00016986,2]
[361763119,1747768247607,-490.0,0.00016986,2]
[361763120,1747768247617,-490.0,0.00016986,2]
[361763121,1747768247627,-151.0,0.00016986,2]
[361763122,1747768247638,-551.04,0.00016986,2]
[361763123,1747768247650,-490.0,0.00016986,2]
[361763124,1747768247660,-430.0,0.00016986,2]
[361763125,1747768247670,-490.0,0.00016986,2]
[361763126,1747768247679,-430.0,0.00016986,2]
[361763127,1747768247688,-430.0,0.00016986,2]
[361763128,1747768247697,-430.0,0.00016986,2]
[361763129,1747768247706,-492.12,0.00016986,2]
[361763130,1747768247716,-509.38,0.00016986,2]
[361763131,1747768247734,-490.0,0.00016986,2]
[361763132,1747768247753,-493.14642579,0.00016986,2]
[361763133,1747768247766,-430.0,0.00016986,2]
[361763134,1747768247775,-1158.805347,0.00016986,2]
[361763135,1747768247789,-430.0,0.00016986,2]
[361763136,1747768247798,-430.0,0.00016986,2]
[361763137,1747768247807,-1158.805347,0.00016986,2]
[361763138,1747768247816,-490.0,0.00016986,2]
[361763139,1747768247826,-170.9,0.00016986,2]
[361763140,1747768247835,-490.0,0.00016986,2]
[361763141,1747768247845,-399.12,0.00016986,2]
[361763142,1747768247854,-151.0,0.00016986,2]
[361763143,1747768247864,-430.0,0.00016986,2]
[361763144,1747768247873,-193.66305584,0.00016986,2]
[361763145,1747768247882,-263.515351,0.00016986,2]
[361763146,1747768247891,-526.48,0.00016986,2]
[361763147,1747768247900,-151.0,0.00016986,2]
[361763148,1747768247909,-490.0,0.00016986,2]
[361763149,1747768247919,-443.56,0.00016986,2]
[361763150,1747768247928,-430.0,0.00016986,2]
[361763151,1747768247937,-263.515351,0.00016986,2]
[361763152,1747768247947,-490.0,0.00016986,2]
[361763153,1747768247955,-430.0,0.00016986,2]
[361763154,1747768247965,-430.0,0.00016986,2]
[361763155,1747768247974,-402.72,0.00016986,2]
[361763156,1747768247982,-151.0,0.00016986,2]
[361763157,1747768247991,-430.0,0.00016986,2]
[361763158,1747768248000,-490.0,0.00016986,2]
[361763159,1747768248010,-490.0,0.00016986,2]
[361763160,1747768248019,-168.98411256,0.0001716,2]
[361763161,1747768248028,-182.79090163,0.0001726,2]
[361763162,1747768248038,-286.44,0.0001726,2]
[361763163,1747768248048,-510.0,0.0001726,2]
[361763164,1747768248057,-510.0,0.0001726,2]
[361763165,1747768248067,-510.0,0.0001726,2]
[361763166,1747768248076,-510.0,0.0001726,2]
[361763167,1747768248086,-502.01732202,0.0001726,2]
[361763168,1747768248096,-510.0,0.0001726,2]
[361763169,1747768248106,-166.74912663,0.0001726,2]
[361763170,1747768248115,-310.0,0.0001726,2]
[361763171,1747768248124,-510.0,0.0001726,2]
[361763172,1747768248134,-510.0,0.0001726,2]
[361763173,1747768248143,-510.0,0.0001726,2]
[361763174,1747768248153,-287.55,0.0001726,2]
[361763175,1747768248162,-487.06,0.0001726,2]
[361763176,1747768248172,-498.96,0.0001726,2]
[361763177,1747768248181,-162.66,0.0001726,2]
[361763178,1747768248191,-219.86,0.0001726,2]
[361763179,1747768248200,-510.0,0.0001726,2]
[361763180,1747768248209,-178.77994709,0.0001726,2]
[361763181,1747768248220,-430.0,0.0001726,2]
[361763182,1747768248229,-430.0,0.0001726,2]
[361763183,1747768248239,-560.0,0.0001726,2]
[361763184,1747768248248,-536.6,0.0001726,2]
[361763185,1747768248258,-510.0,0.0001726,2]
[361763186,1747768248268,-510.0,0.0001726,2]
[361763187,1747768248277,-510.0,0.0001726,2]
[361763188,1747768248287,-510.0,0.0001726,2]
[361763189,1747768248297,-430.0,0.0001726,2]
[361763190,1747768248308,-430.0,0.0001726,2]
[361763191,1747768248317,-430.0,0.0001726,2]
[361763192,1747768248327,-179.85,0.0001726,2]
[361763193,1747768248337,-510.0,0.0001726,2]
[361763194,1747768248346,-183.12336634,0.0001726,2]
[361763195,1747768248355,-264.16,0.0001726,2]
[361763196,1747768248365,-450.41,0.0001726,2]
[361763197,1747768248375,-430.0,0.0001726,2]
[361763198,1747768248385,-488.92,0.0001726,2]
[361763199,1747768248395,-727.0,0.0001726,2]
[361763200,1747768248405,-449.84,0.0001726,2]
[361763201,1747768248414,-318.0,0.0001726,2]
[361763202,1747768248424,-548.01,0.0001726,2]
[361763203,1747768248433,-349.78,0.0001726,2]
[361763204,1747768248443,-444.42,0.0001726,2]
[361763205,1747768248453,-430.0,0.0001726,2]
[361763206,1747768248464,-509.38,0.0001726,2]
[361763207,1747768248474,-430.0,0.0001726,2]
[361763208,1747768248483,-261.55,0.0001726,2]
[361763209,1747768248493,-401.82,0.0001726,2]
[361763210,1747768248502,-430.0,0.0001726,2]
[361763211,1747768248512,-430.0,0.0001726,2]
[361763212,1747768248521,-430.0,0.0001726,2]
[361763213,1747768248530,-430.0,0.0001726,2]
[361763214,1747768248540,-430.0,0.0001726,2]
[361763215,1747768248549,-500.0,0.00017528,2]
[361763216,1747768248558,-430.0,0.00017534,2]
[361763217,1747768248568,-284.56,0.00017534,2]
[361763218,1747768248577,-337.47,0.00017534,2]
[361763219,1747768248586,-529.53,0.00017534,2]
[361763220,1747768248595,-454.21,0.00017534,2]
[361763221,1747768248605,-430.0,0.00017534,2]
[361763222,1747768248615,-727.0,0.00017534,2]
[361763223,1747768248624,-449.84,0.00017534,2]
[361763224,1747768248634,-462.45,0.00017534,2]
[361763225,1747768248643,-509.38,0.00017534,2]
[361763226,1747768248653,-168.56205286,0.00017534,2]
[361763227,1747768248662,-430.0,0.00017534,2]
[361763228,1747768248672,-430.0,0.00017534,2]
[361763229,1747768248681,-430.0,0.00017534,2]
[361763230,1747768248691,-430.0,0.00017534,2]
[361763231,1747768248700,-430.0,0.00017534,2]
[361763232,1747768248710,-160.0,0.00017703,2]
[361763233,1747768248720,-160.0,0.00017703,2]
[361763234,1747768248729,-422.65292303,0.00017707,2]
[361763235,1747768248739,-430.0,0.00017808,2]
[361763236,1747768248749,-430.0,0.00017808,2]
[361763237,1747768248758,-727.0,0.00017808,2]
[361763238,1747768248768,-449.84,0.00017808,2]
[361763239,1747768248781,-509.38,0.00017808,2]
[361763240,1747768248790,-506.37,0.00017808,2]
[361763241,1747768248800,-430.0,0.00017808,2]
[361763242,1747768248809,-550.27,0.00017808,2]
[361763243,1747768248820,-430.0,0.00017808,2]
[361763244,1747768248828,-569.32,0.00017808,2]
[361763245,1747768248838,-532.03224836,0.000179,2]
[361763246,1747768248847,-565.0,0.00018051,2]
[361763247,1747768248857,-430.0,0.00018082,2]
[361763248,1747768248866,-571.7,0.00018082,2]
[361763249,1747768248876,-727.0,0.00018082,2]
[361763250,1747768248885,-449.84,0.00018082,2]
[361763251,1747768248895,-509.38,0.00018082,2]
[361763252,1747768248905,-430.0,0.00018082,2]
[361763253,1747768248914,-430.0,0.00018082,2]
[361763254,1747768248923,-160.0,0.00018175,2]
[361763255,1747768248932,-532.03224822,0.00018176,2]
[361763256,1747768248943,-430.0,0.00018356,2]
[361763257,1747768248952,-727.0,0.00018356,2]
[361763258,1747768248962,-449.84,0.00018356,2]
[361763259,1747768248972,-509.38,0.00018356,2]
[361763260,1747768248981,-430.0,0.00018356,2]
[361763261,1747768248990,-425.93,0.00018356,2]
[361763262,1747768249000,-500.0,0.0001845,2]
[361763263,1747768249009,-532.03224822,0.00018452,2]
[361763264,1747768249019,-481.82,0.0001863,2]
[361763265,1747768249028,-727.0,0.0001863,2]
[361763266,1747768249037,-449.84,0.0001863,2]
[361763267,1747768249047,-509.38,0.0001863,2]
[361763268,1747768249056,-430.0,0.0001863,2]
[361763269,1747768249065,-532.03224822,0.00018728,2]
[361763270,1747768249074,-151.0,0.00018728,2]
[361763271,1747768249083,-151.0,0.00018728,2]
[361763272,1747768249092,-182.185071,0.00018728,2]
[361763273,1747768249101,-182.185071,0.00018728,2]
[361763274,1747768249111,-1687.39259825,0.000189,2]
[361763275,1747768249120,-727.0,0.00018904,2]
[361763276,1747768249129,-449.84,0.00018904,2]
[361763277,1747768249139,-509.38,0.00018904,2]
[361763278,1747768249148,-430.0,0.00018904,2]
[361763279,1747768249157,-532.03224822,0.00019003,2]
[361763280,1747768249166,-151.0,0.000191,2]
[361763281,1747768249176,-727.0,0.00019178,2]
[361763282,1747768249185,-449.84,0.00019178,2]
[361763283,1747768249195,-509.38,0.00019178,2]
[361763284,1747768249205,-372.1,0.00019178,2]
[361763285,1747768249218,-182.210899,0.00019178,2]
[361763286,1747768249227,-4030.0,0.000192,2]
[361763287,1747768249237,-24900.0,0.00019233,2]
[361763288,1747768249246,-151.0,0.00019233,2]
[361763289,1747768249256,-151.0,0.00019233,2]
[361763290,1747768249265,-151.0,0.00019233,2]
[361763291,1747768249274,-151.0,0.00019233,2]
[361763292,1747768249284,-263.515351,0.00019233,2]
[361763293,1747768249294,-263.515351,0.00019233,2]
[361763294,1747768249303,-151.0,0.00019233,2]
[361763295,1747768249314,-532.03224822,0.00019279,2]
[361763296,1747768249323,-500.0,0.00019373,2]
[361763297,1747768249333,-727.0,0.00019452,2]
[361763298,1747768249343,-449.84,0.00019452,2]
[361763299,1747768249352,-509.38,0.00019452,2]
[361763300,1747768249362,-532.03224822,0.00019555,2]
[361763301,1747768249371,-151.0,0.00019726,2]
[361763302,1747768249381,-151.0,0.00019726,2]
[361763303,1747768249389,-151.0,0.00019726,2]
[361763304,1747768249399,-727.0,0.00019726,2]
[361763305,1747768249408,-449.84,0.00019726,2]
[361763306,1747768249418,-509.38,0.00019726,2]
[361763307,1747768249427,-1158.805347,0.00019726,2]
[361763308,1747768249437,-1158.805347,0.00019726,2]
[361763309,1747768249447,-151.0,0.000198,2]
[361763310,1747768249460,-532.03224822,0.00019831,2]
[361763311,1747768249470,-180.05041412,0.00019955,2]
[361763312,1747768249480,-727.0,0.0002,2]
[361763313,1747768249489,-449.84,0.0002,2]
[361763314,1747768249499,-509.38,0.0002,2]
[361763315,1747768249508,-532.03224822,0.00020107,2]
[361763316,1747768249518,-218.770882,0.00020187,2]
[361763317,1747768249527,-727.0,0.00020273,2]
[361763318,1747768249537,-449.84,0.00020273,2]
[361763319,1747768249546,-509.38,0.00020273,2]
[361763320,1747768249555,-404.0,0.00020332,2]
[361763321,1747768249564,-500.0,0.00020341,2]
[361763322,1747768249573,-532.03224822,0.00020383,3]
[361763323,1747768249583,-151.0,0.000205,3]
[361763324,1747768249592,-727.0,0.00020547,2]
[361763325,1747768249601,-449.84,0.00020547,2]
[361763326,1747768249610,-509.38,0.00020547,2]
[361763327,1747768249619,-532.03224822,0.00020659,3]
[361763328,1747768249628,-151.0,0.00020659,2]
[361763329,1747768249638,-202.002,0.00020703,2]
[361763330,1747768249648,-727.0,0.00020821,2]
[361763331,1747768249657,-449.84,0.00020821,2]
[361763332,1747768249666,-509.38,0.00020821,2]
[361763333,1747768249676,-532.03224822,0.00020934,4]
[361763334,1747768249685,-3000.0,0.00021,2]
[361763335,1747768249694,-3000.0,0.0002101,2]
[361763336,1747768249703,-3334.796153,0.0002102,2]
[361763337,1747768249714,-225.064673,0.0002102,2]
[361763338,1747768249723,-225.064673,0.0002102,2]
[361763339,1747768249852,-166.1,0.0002102,2]
[361763340,1747768249863,-166.1,0.0002102,2]
[361763341,1747768249873,-727.0,0.00021095,2]
[361763342,1747768249886,-449.84,0.00021095,2]
[361763343,1747768249895,-509.38,0.00021095,2]
[361763344,1747768249904,-151.0,0.000212,4]
[361763345,1747768249914,-532.03224822,0.0002121,4]
[361763346,1747768249924,-500.0,0.00021225,2]
[361763347,1747768249933,-550.0,0.00021358,2]
[361763348,1747768249942,-727.0,0.00021369,2]
[361763349,1747768249952,-449.84,0.00021369,2]
[361763350,1747768249962,-509.38,0.00021369,2]
[361763351,1747768249972,-532.03224822,0.00021486,5]
[361763352,1747768249981,-727.0,0.00021643,2]
[361763353,1747768249991,-449.84,0.00021643,2]
[361763354,1747768250000,-509.38,0.00021643,2]
[361763355,1747768250010,-532.03224822,0.00021762,5]
[361763356,1747768250021,-151.0,0.000218,2]
[361763357,1747768250030,-151.0,0.000218,2]
[361763358,1747768250039,-151.0,0.000218,2]
[361763359,1747768250049,-153.101249,0.000218,2]
[361763360,1747768250058,-692.939369,0.000218,2]
[361763361,1747768250069,-692.939369,0.000218,2]
[361763362,1747768250079,-151.0,0.000219,3]
[361763363,1747768250089,-727.0,0.00021917,2]
[361763364,1747768250098,-3831.15,0.00021917,2]
[361763365,1747768250108,-449.84,0.00021917,2]
[361763366,1747768250118,-509.38,0.00021917,2]
[361763367,1747768250127,-532.03224822,0.00022038,6]
[361763368,1747768250137,-727.0,0.00022191,2]
[361763369,1747768250146,-449.84,0.00022191,2]
[361763370,1747768250156,-509.38,0.00022191,2]
[361763371,1747768250165,-532.03224822,0.00022314,7]
[361763372,1747768250175,-500.0,0.00022321,2]
[361763373,1747768250184,-727.0,0.00022465,2]
[361763374,1747768250194,-449.84,0.00022465,2]
[361763375,1747768250204,-509.38,0.00022465,2]
[361763376,1747768250214,-685.79,0.00022508,5]
[361763377,1747768250223,-532.03224822,0.0002259,7]
[361763378,1747768250233,-151.0,0.000226,7]
[361763379,1747768250243,-685.79,0.00022608,5]
[361763380,1747768250252,-685.79,0.00022708,7]
[361763381,1747768250262,-727.0,0.00022739,2]
[361763382,1747768250272,-449.96,0.00022739,2]
[361763383,1747768250282,-509.5,0.00022739,2]
[361763384,1747768250292,-685.79,0.00022808,3]
[361763385,1747768250302,-532.03224822,0.00022866,8]
[361763386,1747768250311,-685.79,0.00022908,6]
[361763387,1747768250320,-500.0,0.00023,30]
[361763388,1747768250329,-500.0,0.00023,30]
[361763389,1747768250340,-500.0,0.00023,30]
[361763390,1747768250349,-500.0,0.00023,30]
[361763391,1747768250358,-500.0,0.00023,30]
[361763392,1747768250368,-685.79,0.00023008,5]
[361763393,1747768250377,-685.79,0.00023108,3]
[361763394,1747768250386,-532.03224822,0.00023141,8]
[361763395,1747768250396,-685.79,0.00023208,3]
[361763396,1747768250405,-151.0,0.000233,10]
[361763397,1747768250415,-685.79,0.00023308,2]
[361763398,1747768250424,-404.0,0.00023332,2]
[361763399,1747768250434,-500.0,0.000234,2]
[361763400,1747768250443,-685.79,0.00023408,7]
[361763401,1747768250452,-500.0,0.00023417,2]
[361763402,1747768250462,-532.03224822,0.00023417,9]
[361763403,1747768250472,-1123.424707,0.00023422,2]
[361763404,1747768250481,-500.0,0.00023456,9]
[361763405,1747768250490,-685.79,0.00023508,6]
[361763406,1747768250500,-510.38564359,0.00023602,2]
[361763407,1747768250509,-685.79,0.00023608,7]
[361763408,1747768250519,-151.0,0.00023661,7]
[361763409,1747768250528,-498.640595,0.00023661,7]
[361763410,1747768250538,-151.0,0.00023661,7]
[361763411,1747768250548,-151.0,0.00023661,7]
[361763412,1747768250558,-1490.563079,0.0002368,5]
[361763413,1747768250567,-532.03224822,0.00023693,9]
[361763414,1747768250577,-1000.0,0.000237,5]
[361763415,1747768250587,-636.0,0.000237,2]
[361763416,1747768250597,-685.79,0.00023708,6]
[361763417,1747768250607,-1000.0,0.0002372,5]
[361763418,1747768250616,-1000.0,0.0002374,5]
[361763419,1747768250626,-1000.0,0.0002376,5]
[361763420,1747768250635,-1000.0,0.0002378,5]
[361763421,1747768250645,-1000.0,0.000238,5]
[361763422,1747768250658,-685.79,0.00023808,5]
[361763423,1747768250667,-1000.0,0.0002382,5]
[361763424,1747768250677,-1000.0,0.0002384,5]
[361763425,1747768250687,-1000.0,0.0002386,5]
[361763426,1747768250696,-1000.0,0.0002388,5]
[361763427,1747768250706,-7294.93090218,0.000239,2]
[361763428,1747768250717,-428906.16190983,0.000239,15]
[361763429,1747768250762,-3174.93717675,0.000239,15]
[361763430,1747768250773,-1503.14143,0.000239,15]
[361763431,1747768250789,-2661.11107146,0.000239,15]
[361763432,1747768250938,-3145.25298254,0.000239,15]
[361763485,1747769432645,-196.893793,0.00013699,2]
[361763486,1747769432656,-300.0,0.00016437,2]
[361763487,1747769432666,-300.0,0.00016437,2]
[361763489,1747769432676,-1200.0,0.00016437,2]
[361763490,1747769432685,-450.0,0.00016438,2]
[361763492,1747769432695,-431.2,0.00016438,2]
[361763493,1747769432704,-300.0,0.00016438,2]
[361763494,1747769432716,-450.0,0.00016438,2]
[361763495,1747769432725,-450.0,0.00016438,2]
[361763496,1747769432734,-450.0,0.00016438,2]
[361763497,1747769432743,-300.66701183,0.00016438,2]
[361763498,1747769432753,-450.0,0.00016438,2]
[361763499,1747769432762,-221.75640387,0.00016438,2]
[361763500,1747769432772,-490.0,0.00016438,2]
[361763501,1747769432782,-157.65951359,0.00016438,2]
[361763502,1747769432791,-450.0,0.00016438,2]
[361763503,1747769432800,-450.0,0.00016438,2]
[361763504,1747769432810,-510.00217005,0.00016438,2]
[361763505,1747769432819,-430.0,0.00016438,2]
[361763506,1747769432828,-450.0,0.00016438,2]
[361763507,1747769432837,-389.43,0.00016438,2]
[361763508,1747769432846,-450.0,0.00016438,2]
[361763509,1747769432856,-450.0,0.00016438,2]
[361763510,1747769432865,-430.0,0.00016438,2]
[361763511,1747769432874,-199.00595362,0.00016438,2]
[361763512,1747769432883,-430.0,0.00016438,2]
[361763513,1747769432893,-470.0,0.00016438,2]
[361763514,1747769432902,-430.0,0.00016438,2]
[361763515,1747769432911,-472.24322305,0.00016438,2]
[361763516,1747769432920,-372.6,0.00016438,2]
[361763517,1747769432930,-470.0,0.00016438,2]
[361763518,1747769432939,-436.08,0.00016438,2]
[361763519,1747769432948,-470.0,0.00016438,2]
[361763520,1747769432958,-430.0,0.00016438,2]
[361763521,1747769432968,-500.0,0.00016667,2]
[361763522,1747769432977,-470.0,0.00016712,2]
[361763523,1747769432988,-430.0,0.00016712,2]
[361763524,1747769432997,-151.0,0.00016986,2]
[361763525,1747769433006,-151.0,0.00016986,2]
[361763526,1747769433016,-151.0,0.00016986,2]
[361763527,1747769433026,-151.0,0.00016986,2]
[361763528,1747769433035,-151.0,0.00016986,2]
[361763529,1747769433045,-277.60595,0.00016986,2]
[361763530,1747769433054,-277.60595,0.00016986,2]
[361763531,1747769433063,-445.851302,0.00016986,2]
[361763532,1747769433073,-445.851302,0.00016986,2]
[361763533,1747769433082,-430.0,0.00016986,2]
[361763534,1747769433092,-430.0,0.0001726,2]
[361763535,1747769433102,-5000.0,0.00017457,2]
[361763536,1747769433111,-430.0,0.00017534,2]
[361763537,1747769433121,-422.65292303,0.00017577,2]
[361763538,1747769433130,-160.0,0.00017577,2]
[361763539,1747769433140,-160.0,0.00017577,2]
[361763540,1747769433150,-430.0,0.00017808,2]
[361763541,1747769433159,-202.67895176,0.000179,2]
[361763542,1747769433169,-378.87,0.00018082,2]
[361763543,1747769433179,-202.6789517,0.000183,2]
[361763544,1747769433191,-202.6789517,0.000187,2]
[361763545,1747769433202,-151.0,0.00018904,2]
[361763546,1747769433212,-151.0,0.00018904,2]
[361763547,1747769433223,-277.60595,0.00018904,2]
[361763548,1747769433232,-277.60595,0.00018904,2]
[361763549,1747769433242,-445.851302,0.00018904,2]
[361763550,1747769433252,-445.851302,0.00018904,2]
[361763551,1747769433261,-202.6789517,0.000191,2]
[361763552,1747769433272,-182.210899,0.00019178,2]
[361763553,1747769433282,-151.0,0.00019233,2]
[361763554,1747769433291,-151.0,0.00019233,2]
[361763555,1747769433301,-583.166257,0.00019233,2]
[361763556,1747769433311,-151.0,0.00019233,2]
[361763557,1747769433321,-319.22861985,0.000194,2]
[361763558,1747769433330,-202.6789517,0.000195,2]
[361763559,1747769433340,-555.2955501,0.00019616,2]
[361763560,1747769433350,-10934.29264906,0.00019789,2]
[361763562,1747769438243,-300.0,0.00016437,2]
[361763563,1747769438253,-2822.1875981,0.00019789,2]
[361763564,1747769438265,-336.26733391,0.00019789,2]
[361763565,1747769438278,-1599.13135451,0.00019789,2]
[361763567,1747769438291,-3579.72747579,0.00019789,2]
[361763570,1747769438303,-954.20543836,0.00019789,2]
[361763572,1747769438315,-1998.49179696,0.00019789,2]
[361763574,1747769438326,-674.02096694,0.00019789,2]
[361763577,1747769438342,-293.33861973,0.00019789,2]
[361763606,1747769443486,-790.0325986,0.00019789,2]
[361763607,1747769443498,-918.30416804,0.00019789,2]
[361763608,1747769443509,-202.6789517,0.000199,2]
[361763609,1747769443519,-207.4,0.00020135,2]
[361763610,1747769443530,-151.0,0.00020135,2]
[361763611,1747769443541,-702.4267993,0.00020152,2]
[361763612,1747769443551,-196.893793,0.00020187,2]
[361763613,1747769443561,-319.22861979,0.00020223,2]
[361763614,1747769443571,-202.6789517,0.000203,3]
[361763615,1747769443581,-202.6789517,0.000207,3]
[361763616,1747769443590,-319.22861979,0.00021047,2]
[361763617,1747769443600,-202.6789517,0.000211,4]
[361763618,1747769443609,-7104.75991423,0.000211,2]
[361763619,1747769443629,-799.60250197,0.000211,2]
[361763620,1747769446396,-4407.87177356,0.000211,2]
[361763621,1747769446665,-3643.22696005,0.000211,2]
[361763622,1747769446675,-500.0,0.00021225,2]
[361763623,1747769446684,-161.601,0.000215,2]
[361763624,1747769446694,-202.6789517,0.000215,5]
[361763625,1747769446703,-1124.92839883,0.000218,2]
[361763626,1747769446713,-319.22861979,0.0002187,2]
[361763627,1747769446722,-202.6789517,0.000219,6]
[361763628,1747769446733,-202.6789517,0.000223,7]
[361763629,1747769446745,-500.0,0.00022321,2]
[361763630,1747769446755,-161.730129,0.00022466,15]
[361763631,1747769446765,-158.401731,0.00022466,15]
[361763632,1747769446775,-202.6789517,0.000227,7]
[361763633,1747769446785,-363.3878261,0.00022986,2]
[361763634,1747769446794,-500.0,0.00023,30]
[361763635,1747769446803,-202.6789517,0.000231,8]
[361763636,1747769446813,-161.94074666,0.0002326,2]
[361763637,1747769446823,-1011.082237,0.00023422,2]
[361763638,1747769446833,-161.94074666,0.00023425,2]
[361763639,1747769446843,-202.6789517,0.000235,9]
[361763640,1747769446852,-161.94074666,0.00023589,2]
[361763641,1747769446862,-2780.15828889,0.000236,5]
[361763642,1747769446871,-161.94074666,0.00023781,2]
[361763643,1747769446881,-154.18501735,0.000238,2]
[361763644,1747769446891,-151.0,0.0002388,7]
[361763645,1747769446901,-151.0,0.0002388,7]
[361763646,1747769446910,-277.60595,0.0002388,2]
[361763647,1747769446921,-277.60595,0.0002388,2]
[361763648,1747769446931,-445.851302,0.0002388,7]
[361763649,1747769446941,-445.851302,0.0002388,7]
[361763650,1747769446952,-477.31505793,0.00023898,2]
[361763651,1747769446962,-500.0,0.00023899,2]
[361763652,1747769446972,-3671.52,0.00023899,2]
[361763653,1747769446983,-500.0,0.00023899,2]
[361763654,1747769446992,-500.0,0.00023899,2]
[361763655,1747769447001,-500.0,0.00023899,2]
[361763656,1747769447011,-593.69854341,0.00023899,2]
[361763657,1747769447021,-500.0,0.00023899,2]
[361763658,1747769447031,-500.0,0.00023899,2]
[361763659,1747769447040,-500.0,0.00023899,2]
[361763660,1747769447050,-213.89905484,0.00023899,2]
[361763661,1747769447060,-500.0,0.00023899,2]
[361763662,1747769447071,-500.0,0.00023899,2]
[361763663,1747769447082,-407.15351252,0.00023899,2]
[361763665,1747769840879,-193.60574598,0.00013562,2]
[361763666,1747769874888,-89.22908186,0.00013562,2]
[361763667,1747770134161,-177.204413,0.00013699,2]
[361763668,1747770134183,-300.0,0.00015658,2]
[361763669,1747770134206,-24781.795587,0.00015659,2]
[361763670,1747770182418,-118.204413,0.00015659,2]
[361763671,1747770413285,-180.5504243,0.00015613,2]
[361763672,1747770414801,-201.2451627,0.00015613,2]
[361763673,1747770489454,-297.0,0.00015457,2]
[361763719,1747770632575,-3011.7542508,0.00015613,2]
[361763721,1747770632589,-249.95650286,0.00016338,2]
[361763723,1747770632599,-153.13538379,0.000164,2]